fUSD/lending_fUSD_20250107
["ID","MTS","AMOUNT","RATE_DAILY","PERIOD"]
[347980623,1736259067851,-1215.28,0.00010794,2]
[347980624,1736259067861,-500.0,0.00010794,2]
[347980625,1736259067871,-500.0,0.00010794,2]
[347980626,1736259067882,-500.0,0.00010794,2]
[347980627,1736259067892,-786.04,0.00010794,2]
[347980628,1736259067902,-500.0,0.00010794,2]
[347980629,1736259067912,-500.0,0.00010794,2]
[347980630,1736259067922,-1224.53,0.00010794,2]
[347980631,1736259067932,-500.0,0.00010794,2]
[347980632,1736259067942,-500.0,0.00010794,2]
[347980633,1736259067952,-1683.27,0.00010794,2]
[347980634,1736259067961,-500.0,0.00010794,2]
[347980635,1736259067972,-500.0,0.00010794,2]
[347980636,1736259067982,-500.0,0.00010794,2]
[347980637,1736259067992,-500.0,0.00010794,2]
[347980638,1736259068002,-500.0,0.00010794,2]
[347980639,1736259068012,-1162.37,0.00010794,2]
[347980640,1736259068022,-500.0,0.00010794,2]
[347980641,1736259068032,-500.0,0.00010794,2]
[347980642,1736259068042,-700.53,0.00010794,2]
[347980643,1736259068053,-2097.44,0.00010795,2]
[347980644,1736259068063,-500.0,0.00010795,2]
[347980645,1736259068073,-1762.13,0.00010795,2]
[347980646,1736259068084,-500.0,0.00010795,2]
[347980647,1736259068097,-500.0,0.00010795,2]
[347980648,1736259068107,-500.0,0.00010795,2]
[347980649,1736259068117,-2072.97,0.00010795,2]
[347980650,1736259068127,-500.0,0.00010795,2]
[347980651,1736259068137,-500.0,0.00010795,2]
[347980652,1736259068147,-500.0,0.00010795,2]
[347980653,1736259068157,-500.0,0.00010795,2]
[347980654,1736259068167,-500.0,0.00010795,2]
[347980655,1736259068177,-1739.07,0.00010795,2]
[347980656,1736259068188,-500.0,0.00010795,2]
[347980657,1736259068198,-500.0,0.00010795,2]
[347980658,1736259068209,-526.9,0.00010795,2]
[347980659,1736259068219,-500.0,0.00010795,2]
[347980660,1736259068230,-500.0,0.00010795,2]
[347980661,1736259068240,-5711.78,0.00010795,2]
[347980662,1736259068250,-500.0,0.00010795,2]
[347980663,1736259068260,-556.57,0.00010795,2]
[347980664,1736259068270,-500.0,0.00010795,2]
[347980665,1736259068280,-905.79,0.00010795,2]
[347980666,1736259068290,-2024.87,0.00010795,2]
[347980667,1736259068300,-500.0,0.00010795,2]
[347980668,1736259068310,-500.0,0.00010795,2]
[347980669,1736259068320,-500.0,0.00010795,2]
[347980670,1736259068330,-500.0,0.00010795,2]
[347980671,1736259068341,-684.18,0.00010795,2]
[347980672,1736259068358,-3304.34,0.00010795,2]
[347980673,1736259068368,-1665.02,0.00010795,2]
[347980674,1736259068378,-2019.9,0.00010795,2]
[347980675,1736259068388,-500.0,0.00010795,2]
[347980676,1736259068398,-829.4,0.00010795,2]
[347980677,1736259068408,-3244.82,0.00010795,2]
[347980678,1736259068419,-500.0,0.00010795,2]
[347980679,1736259068430,-1232.32,0.00010795,2]
[347980680,1736259068441,-835.84,0.00010795,2]
[347980681,1736259068451,-557.9,0.00010795,2]
[347980682,1736259068461,-1275.66,0.00010795,2]
[347980683,1736259068471,-760.29,0.00010795,2]
[347980684,1736259068481,-2719.27,0.00010795,2]
[347980685,1736259068491,-2971.79,0.00010795,2]
[347980686,1736259068502,-2932.38,0.00010795,2]
[347980687,1736259068512,-1714.17,0.00010795,2]
[347980688,1736259068522,-4498.65532292,0.000108,2]
[347980689,1736259068532,-14200.0,0.000108,3]
[347980690,1736259068542,-150.0,0.0001081,2]
[347980691,1736259068552,-825.7,0.00010821,2]
[347980692,1736259068563,-1856.69,0.00010821,2]
[347980693,1736259068573,-500.0,0.00010821,2]
[347980694,1736259068584,-1067.63,0.00010821,2]
[347980695,1736259068594,-1317.9,0.00010821,2]
[347980696,1736259068606,-776.97,0.00010821,2]
[347980697,1736259068616,-2817.1,0.00010821,2]
[347980698,1736259068626,-10455.72,0.00010821,2]
[347980699,1736259068636,-2247.27,0.00010821,2]
[347980700,1736259068646,-3971.17,0.00010821,2]
[347980701,1736259068656,-1196.41,0.00010821,2]
[347980702,1736259068666,-5209.49,0.00010821,2]
[347980703,1736259068676,-1104.63,0.00010821,2]
[347980704,1736259068686,-500.0,0.00010821,2]
[347980705,1736259068696,-1530.86,0.00010821,2]
[347980706,1736259068707,-150.0,0.00010822,2]
[347980707,1736259068716,-167.44256142,0.00010831,2]
[347980708,1736259068726,-150.0,0.00010846,2]
[347980709,1736259068736,-3146.0,0.00010849,2]
[347980710,1736259068746,-19527.0,0.00010849,2]
[347980711,1736259068756,-801.0,0.00010849,2]
[347980712,1736259068766,-431.0,0.00010849,2]
[347980713,1736259068775,-150.0,0.0001086,2]
[347980714,1736259068785,-1491.33,0.00010863,2]
[347980715,1736259068795,-4602.92,0.00010863,2]
[347980716,1736259068805,-876.25,0.00010863,2]
[347980717,1736259068816,-12221.56,0.00010863,2]
[347980718,1736259068826,-2688.37,0.00010863,2]
[347980719,1736259068835,-500.0,0.00010863,2]
[347980720,1736259068846,-1414.4,0.00010863,2]
[347980721,1736259068857,-809.03,0.00010863,2]
[347980722,1736259068866,-152.04504368,0.00010873,2]
[347980723,1736259068876,-161.54689447,0.00010877,2]
[347980724,1736259068886,-150.0,0.00010877,2]
[347980725,1736259068896,-150.0,0.00010877,2]
[347980726,1736259068907,-156.1341885,0.00010877,2]
[347980727,1736259068916,-1206.4887829,0.00010879,3]
[347980728,1736259068926,-531.64,0.00010879,2]
[347980729,1736259068936,-1011686.79990633,0.0001088,2]
[347980730,1736259069667,-947.72946,0.0001088,2]
[347980731,1736259069711,-1384.23832233,0.0001088,2]
[347980732,1736259069723,-2519.2,0.0001088,2]
[347980733,1736259069735,-962.70634916,0.0001088,2]
[347980734,1736259069815,-500.0,0.00010243,2]
[347980735,1736259069824,-270.57157677,0.0001088,2]
[347980736,1736259069836,-33643.89535357,0.0001088,2]
[347980737,1736259069849,-5666.5359537,0.0001088,2]
[347980738,1736259069861,-2446.67393065,0.0001088,2]
[347980739,1736259070282,-282.9059681,0.00010243,2]
[347980740,1736259070295,-394.6240319,0.00010243,2]
[347980741,1736259070305,-677.53,0.00010517,2]
[347980742,1736259070315,-500.0,0.00010517,2]
[347980743,1736259070325,-677.53,0.00010791,2]
[347980744,1736259070335,-500.0,0.00010791,2]
[347980745,1736259070347,-152.04560678,0.00010873,2]
[347980746,1736259070359,-7007.18327074,0.0001088,2]
[347980747,1736259070371,-2013.4,0.0001088,2]
[347980748,1736259070389,-6197.33498748,0.0001088,2]
[347980749,1736259070401,-531.18699998,0.0001088,2]
[347980750,1736259070416,-5537.21272259,0.0001088,2]
[347980751,1736259070429,-1998.02907365,0.0001088,2]
[347980752,1736259070442,-755.91,0.0001088,2]
[347980753,1736259070457,-2367.26859173,0.0001088,2]
[347980754,1736259070469,-1146.65714572,0.0001088,2]
[347980755,1736259070481,-116362.02185301,0.0001088,2]
[347980756,1736259110394,-192.90400355,0.0001078,2]
[347980757,1736259110404,-101452.51440703,0.0001088,2]
[347980758,1736259111070,-3087.07355343,0.0001088,2]
[347980759,1736259111083,-5809.64591392,0.0001088,2]
[347980760,1736259111095,-6064.0000005,0.0001088,2]
[347980761,1736259111112,-252.77790372,0.0001088,2]
[347980762,1736259111123,-47386.32095257,0.0001088,2]
[347980763,1736259111140,-10730.70180181,0.0001088,2]
[347980764,1736259111153,-52328.76563707,0.0001088,2]
[347980765,1736259111165,-4858.11589993,0.0001088,2]
[347980766,1736259111178,-366.0818685,0.0001088,2]
[347980768,1736259514756,153.04,0.0002,120]
[347980770,1736259947458,164.45,7.083e-05,2]
[347980790,1736260232136,-785.34,8.219e-05,2]
[347980791,1736260232146,-291.5271,8.568e-05,2]
[347980792,1736260232156,-13144.6565,8.668e-05,2]
[347980793,1736260232169,-20672.3035,8.668e-05,2]
[347980794,1736260232179,-1158.15944762,8.668e-05,2]
[347980795,1736260232189,-800.0,8.768e-05,2]
[347980796,1736260232199,-1000.0,8.81e-05,2]
[347980797,1736260232208,-835.57,8.823e-05,2]
[347980798,1736260232218,-1569.87,8.931e-05,2]
[347980799,1736260232227,-250.0,9.013e-05,2]
[347980800,1736260232236,-250.0,9.039e-05,2]
[347980801,1736260232246,-250.0,9.097e-05,2]
[347980802,1736260232255,-23900.0,9.111e-05,2]
[347980803,1736260232264,-633.87,9.159e-05,2]
[347980804,1736260232273,-206.13,9.339e-05,2]
[347980805,1736260232284,-733.19,9.449e-05,2]
[347980806,1736260232293,-299.99,9.449e-05,2]
[347980807,1736260232304,-5039.44,9.449e-05,2]
[347980808,1736260232314,-1149.47,9.449e-05,2]
[347980809,1736260232323,-2625.9911,9.67e-05,2]
[347980810,1736260232333,-693.7,9.699e-05,2]
[347980811,1736260232343,-2128.29,9.699e-05,2]
[347980812,1736260232352,-500.0,9.699e-05,2]
[347980813,1736260232361,-640.48,9.699e-05,2]
[347980814,1736260232371,-1232.08,9.699e-05,2]
[347980815,1736260232380,-759.79,9.699e-05,2]
[347980816,1736260232390,-1884.29,9.699e-05,2]
[347980817,1736260232399,-500.0,9.699e-05,2]
[347980818,1736260232408,-1065.09,9.699e-05,2]
[347980819,1736260232417,-1308.74,9.699e-05,2]
[347980820,1736260232427,-774.49,9.699e-05,2]
[347980821,1736260232436,-500.0,9.699e-05,2]
[347980823,1736260232445,-2822.7,9.699e-05,2]
[347980825,1736260232454,-2256.26,9.699e-05,2]
[347980827,1736260232463,-37045.4753,9.77e-05,2]
[347980829,1736260232472,-150.0,9.789e-05,2]
[347980830,1736260232482,-150.0,9.789e-05,2]
[347980831,1736260232493,-150.0,9.789e-05,2]
[347980832,1736260232503,-150.0,9.789e-05,2]
[347980833,1736260232519,-150.0,9.807e-05,2]
[347980835,1736260232529,-150.0,9.824e-05,2]
[347980837,1736260232538,-150.0,9.842e-05,2]
[347980839,1736260232548,-150.0,9.846e-05,2]
[347980841,1736260232559,-150.0,9.857e-05,2]
[347980843,1736260232569,-150.0,9.857e-05,2]
[347980845,1736260232578,-150.0,9.859e-05,2]
[347980847,1736260232588,-280.04320263,9.864e-05,2]
[347980849,1736260232598,-500.0,9.864e-05,2]
[347980851,1736260232607,-150.0,9.877e-05,2]
[347980853,1736260232617,-500.0,9.89e-05,2]
[347980855,1736260232627,-150.0,9.894e-05,2]
[347980857,1736260232637,-1400.0,9.9e-05,3]
[347980859,1736260232647,-150.0,9.904e-05,2]
[347980862,1736260232656,-1000.0,9.912e-05,2]
[347980863,1736260232665,-150.0,9.912e-05,2]
[347980865,1736260232675,-150.0,9.925e-05,2]
[347980867,1736260232684,-835.57,9.926e-05,2]
[347980869,1736260232693,-150.0,9.929e-05,2]
[347980872,1736260232703,-5212.563,9.945e-05,2]
[347980873,1736260232712,-150.0,9.947e-05,2]
[347980876,1736260232721,-150.0,9.961e-05,2]
[347980878,1736260232733,-150.0,9.964e-05,2]
[347980880,1736260232743,-500.0,9.967e-05,2]
[347980882,1736260232752,-500.0,9.967e-05,2]
[347980884,1736260232761,-532.2596745,9.967e-05,2]
[347980886,1736260232770,-528.48766982,9.967e-05,2]
[347980888,1736260232781,-596.97,9.967e-05,2]
[347980889,1736260232790,-4678.41,9.967e-05,2]
[347980892,1736260232800,-500.0,9.967e-05,2]
[347980894,1736260232810,-502.75653172,9.967e-05,2]
[347980896,1736260232820,-503.81658871,9.967e-05,2]
[347980898,1736260232829,-500.0,9.967e-05,2]
[347980899,1736260232839,-4245.17,9.967e-05,2]
[347980902,1736260232849,-1738.92,9.967e-05,2]
[347980904,1736260232858,-3642.51,9.967e-05,2]
[347980906,1736260232867,-6929.39,9.967e-05,2]
[347980908,1736260232877,-764.83,9.967e-05,2]
[347980909,1736260232886,-660.5,9.967e-05,2]
[347980912,1736260232896,-550.21,9.967e-05,2]
[347980913,1736260232905,-500.0,9.967e-05,2]
[347980916,1736260232915,-2304.06,9.967e-05,2]
[347980918,1736260232924,-500.0,9.967e-05,2]
[347980919,1736260232933,-500.0,9.967e-05,2]
[347980922,1736260232943,-500.30582414,9.967e-05,2]
[347980923,1736260232952,-1673.54,9.967e-05,2]
[347980926,1736260232961,-538.44,9.967e-05,2]
[347980927,1736260232971,-891.67,9.967e-05,2]
[347980930,1736260232980,-500.0,9.967e-05,2]
[347980932,1736260232989,-2713.06,9.967e-05,2]
[347980934,1736260232999,-500.0,9.967e-05,2]
[347980936,1736260233008,-500.0,9.967e-05,2]
[347980938,1736260233018,-500.0,9.968e-05,2]
[347980940,1736260233028,-500.0,9.968e-05,2]
[347980942,1736260233037,-500.0,9.968e-05,2]
[347980943,1736260233047,-500.0,9.968e-05,2]
[347980946,1736260233059,-500.46465182,9.968e-05,2]
[347980947,1736260233069,-500.0,9.968e-05,2]
[347980950,1736260233079,-500.0,9.968e-05,2]
[347980952,1736260233089,-500.0,9.968e-05,2]
[347980954,1736260233099,-500.0,9.968e-05,2]
[347980955,1736260233109,-567.36,9.968e-05,2]
[347980957,1736260233119,-500.0,9.968e-05,2]
[347980959,1736260233129,-500.0,9.968e-05,2]
[347980961,1736260233138,-500.0,9.968e-05,2]
[347980964,1736260233148,-1477.62,9.968e-05,2]
[347980966,1736260233157,-500.0,9.968e-05,2]
[347980967,1736260233167,-500.0,9.968e-05,2]
[347980970,1736260233176,-586.3,9.968e-05,2]
[347980972,1736260233186,-500.50137231,9.968e-05,2]
[347980973,1736260233196,-500.20421125,9.968e-05,2]
[347980976,1736260233205,-500.0,9.968e-05,2]
[347980978,1736260233215,-500.0,9.968e-05,2]
[347980980,1736260233225,-500.0,9.968e-05,2]
[347980981,1736260233234,-500.0,9.968e-05,2]
[347980984,1736260233244,-542.61,9.968e-05,2]
[347980986,1736260233254,-500.45603127,9.968e-05,2]
[347980987,1736260233263,-500.0,9.968e-05,2]
[347980990,1736260233273,-500.0,9.968e-05,2]
[347980991,1736260233283,-1829.44,9.968e-05,2]
[347980994,1736260233293,-357.87205122,9.968e-05,2]
[347980995,1736260233304,-516.72,9.968e-05,2]
[347980997,1736260233314,-500.0,9.968e-05,2]
[347980999,1736260233323,-500.0,9.968e-05,2]
[347981001,1736260233333,-1174.4,9.968e-05,2]
[347981004,1736260233343,-500.0,9.968e-05,2]
[347981006,1736260233353,-500.40833853,9.968e-05,2]
[347981007,1736260233362,-500.0,9.968e-05,2]
[347981010,1736260233372,-500.0,9.968e-05,2]
[347981011,1736260233381,-1389.22,9.968e-05,2]
[347981014,1736260233391,-500.0,9.968e-05,2]
[347981016,1736260233400,-500.0,9.968e-05,2]
[347981018,1736260233410,-500.0,9.968e-05,2]
[347981020,1736260233420,-858.15,9.968e-05,2]
[347981021,1736260233430,-500.0,9.968e-05,2]
[347981023,1736260233440,-500.0,9.968e-05,2]
[347981025,1736260233450,-500.0,9.968e-05,2]
[347981027,1736260233460,-1376.04,9.968e-05,2]
[347981029,1736260233470,-309.59936592,9.968e-05,2]
[347981031,1736260233479,-745.94,9.968e-05,2]
[347981033,1736260233490,-500.0,9.968e-05,2]
[347981035,1736260233499,-512.13179683,9.968e-05,2]
[347981036,1736260233509,-675.0,9.968e-05,2]
[347981037,1736260233520,-500.0,9.968e-05,2]
[347981038,1736260233529,-500.0,9.968e-05,2]
[347981039,1736260233539,-500.0,9.968e-05,2]
[347981040,1736260233550,-500.0,9.968e-05,2]
[347981041,1736260233563,-746.19,9.968e-05,2]
[347981042,1736260233573,-500.0,9.968e-05,2]
[347981043,1736260233584,-500.0,9.968e-05,2]
[347981044,1736260233594,-500.0,9.968e-05,2]
[347981045,1736260233605,-500.0,9.968e-05,2]
[347981046,1736260233615,-500.0,9.968e-05,2]
[347981047,1736260233625,-500.0,9.968e-05,2]
[347981049,1736260233635,-500.0,9.968e-05,2]
[347981051,1736260233645,-1329.13,9.968e-05,2]
[347981053,1736260233654,-500.0,9.968e-05,2]
[347981055,1736260233664,-2311.37,9.968e-05,2]
[347981057,1736260233676,-540.21,9.968e-05,2]
[347981059,1736260233688,-500.0,9.968e-05,2]
[347981061,1736260233699,-500.0,9.968e-05,2]
[347981063,1736260233708,-500.0,9.968e-05,2]
[347981065,1736260233718,-1585.16,9.968e-05,2]
[347981067,1736260233731,-500.0,9.968e-05,2]
[347981069,1736260233740,-500.0,9.968e-05,2]
[347981071,1736260233749,-500.26568098,9.968e-05,2]
[347981073,1736260233758,-1533.01,9.968e-05,2]
[347981075,1736260233768,-500.0,9.968e-05,2]
[347981077,1736260233777,-1610.18,9.968e-05,2]
[347981079,1736260233787,-500.0,9.968e-05,2]
[347981081,1736260233796,-500.0,9.968e-05,2]
[347981083,1736260233807,-500.0,9.968e-05,2]
[347981085,1736260233817,-500.0,9.968e-05,2]
[347981087,1736260233827,-832.32,9.968e-05,2]
[347981089,1736260233836,-500.0,9.968e-05,2]
[347981091,1736260233845,-500.0,9.968e-05,2]
[347981093,1736260233855,-500.0,9.968e-05,2]
[347981095,1736260233865,-1820.98,9.968e-05,2]
[347981097,1736260233875,-500.0,9.968e-05,2]
[347981099,1736260233885,-1451.56,9.968e-05,2]
[347981101,1736260233895,-500.0,9.968e-05,2]
[347981103,1736260233910,-500.0,9.968e-05,2]
[347981105,1736260233920,-500.0,9.968e-05,2]
[347981107,1736260233930,-257.41051181,9.968e-05,2]
[347981110,1736260233940,-500.0,9.968e-05,2]
[347981112,1736260233950,-500.0,9.968e-05,2]
[347981114,1736260233960,-571.06849702,9.968e-05,2]
[347981116,1736260233970,-500.0,9.968e-05,2]
[347981118,1736260233981,-613.05,9.968e-05,2]
[347981120,1736260233991,-500.0,9.968e-05,2]
[347981122,1736260234001,-500.0,9.968e-05,2]
[347981124,1736260234011,-631.08,9.968e-05,2]
[347981126,1736260234021,-500.0,9.968e-05,2]
[347981128,1736260234031,-500.0,9.968e-05,2]
[347981130,1736260234041,-3399.27,9.968e-05,2]
[347981132,1736260234051,-500.0,9.968e-05,2]
[347981134,1736260234062,-500.0,9.968e-05,2]
[347981136,1736260234072,-770.29,9.968e-05,2]
[347981137,1736260234081,-526.68138423,9.968e-05,2]
[347981139,1736260234091,-500.0,9.968e-05,2]
[347981142,1736260234102,-500.0,9.968e-05,2]
[347981144,1736260234112,-1831.33,9.968e-05,2]
[347981146,1736260234121,-500.0,9.968e-05,2]
[347981147,1736260234131,-500.0,9.968e-05,2]
[347981150,1736260234141,-500.0,9.968e-05,2]
[347981151,1736260234151,-565.2,9.968e-05,2]
[347981154,1736260234162,-500.0,9.968e-05,2]
[347981155,1736260234172,-500.0,9.968e-05,2]
[347981157,1736260234182,-500.0,9.968e-05,2]
[347981160,1736260234192,-500.0,9.968e-05,2]
[347981162,1736260234202,-500.0,9.968e-05,2]
[347981164,1736260234213,-500.0,9.968e-05,2]
[347981166,1736260234223,-500.0,9.968e-05,2]
[347981168,1736260234233,-1827.16,9.968e-05,2]
[347981170,1736260234243,-500.0,9.968e-05,2]
[347981172,1736260234252,-1023.2,9.968e-05,2]
[347981174,1736260234262,-574.4,9.968e-05,2]
[347981176,1736260234273,-873.66,9.968e-05,2]
[347981178,1736260234284,-2506.52,9.968e-05,2]
[347981180,1736260234294,-500.37548615,9.968e-05,2]
[347981182,1736260234307,-1950.65,9.968e-05,2]
[347981184,1736260234318,-701.27,9.968e-05,2]
[347981186,1736260234328,-856.18,9.968e-05,2]
[347981188,1736260234338,-842.52,9.968e-05,2]
[347981190,1736260234348,-500.0,9.968e-05,2]
[347981192,1736260234359,-256.586678,9.968e-05,2]
[347981194,1736260234369,-500.0,9.968e-05,2]
[347981196,1736260234380,-1545.48,9.968e-05,2]
[347981198,1736260234390,-500.0,9.968e-05,2]
[347981200,1736260234400,-565.76,9.968e-05,2]
[347981202,1736260234410,-500.0,9.968e-05,2]
[347981204,1736260234420,-154.94492,9.968e-05,2]
[347981207,1736260234430,-531.28,9.968e-05,2]
[347981209,1736260234440,-500.0,9.968e-05,2]
[347981210,1736260234449,-155.826196,9.968e-05,2]
[347981212,1736260234460,-8819.26,9.968e-05,2]
[347981214,1736260234470,-1955.43,9.968e-05,2]
[347981217,1736260234480,-500.0,9.968e-05,2]
[347981219,1736260234490,-500.0,9.968e-05,2]
[347981220,1736260234499,-767.63,9.968e-05,2]
[347981222,1736260234509,-500.0,9.968e-05,2]
[347981225,1736260234519,-500.0,9.968e-05,2]
[347981227,1736260234529,-500.0,9.968e-05,2]
[347981229,1736260234539,-500.0,9.968e-05,2]
[347981231,1736260234550,-500.0,9.968e-05,2]
[347981233,1736260234564,-318.614888,9.968e-05,2]
[347981235,1736260234575,-2372.34,9.968e-05,2]
[347981237,1736260234587,-500.0,9.968e-05,2]
[347981239,1736260234598,-2200.83,9.968e-05,2]
[347981241,1736260234610,-3445.38,9.968e-05,2]
[347981243,1736260234620,-500.36122835,9.968e-05,2]
[347981245,1736260234630,-500.0,9.968e-05,2]
[347981247,1736260234641,-587.88,9.968e-05,2]
[347981249,1736260234651,-500.0,9.968e-05,2]
[347981251,1736260234661,-1244.25,9.968e-05,2]
[347981253,1736260234672,-152.526197,9.968e-05,2]
[347981255,1736260234682,-1739.85,9.968e-05,2]
[347981257,1736260234692,-500.0,9.968e-05,2]
[347981259,1736260234702,-500.0,9.968e-05,2]
[347981261,1736260234712,-780.79,9.968e-05,2]
[347981263,1736260234722,-500.0,9.968e-05,2]
[347981265,1736260234737,-500.0,9.968e-05,2]
[347981267,1736260234747,-500.0,9.968e-05,2]
[347981269,1736260234756,-500.0,9.968e-05,2]
[347981271,1736260234768,-3786.3,9.968e-05,2]
[347981273,1736260234777,-500.0,9.968e-05,2]
[347981275,1736260234788,-500.0,9.968e-05,2]
[347981277,1736260234797,-503.76,9.968e-05,2]
[347981279,1736260234809,-1182.44,9.968e-05,2]
[347981281,1736260234819,-5804.12,9.968e-05,2]
[347981283,1736260234829,-500.0,9.968e-05,2]
[347981285,1736260234839,-500.0,9.968e-05,2]
[347981287,1736260234848,-4920.76,9.968e-05,2]
[347981289,1736260234858,-500.0,9.968e-05,2]
[347981292,1736260234868,-500.0,9.968e-05,2]
[347981293,1736260234878,-1100.37,9.968e-05,2]
[347981296,1736260234887,-1881.61,9.968e-05,2]
[347981298,1736260234897,-369.89529221,9.968e-05,2]
[347981300,1736260234907,-546.09,9.968e-05,2]
[347981302,1736260234917,-561.16,9.968e-05,2]
[347981304,1736260234927,-2436.95,9.968e-05,2]
[347981306,1736260234936,-3329.05,9.968e-05,2]
[347981308,1736260234945,-500.0,9.968e-05,2]
[347981310,1736260234954,-500.0,9.968e-05,2]
[347981312,1736260234964,-2039.6,9.968e-05,2]
[347981314,1736260234974,-500.0,9.968e-05,2]
[347981316,1736260234983,-500.65088403,9.968e-05,2]
[347981318,1736260234992,-1304.28,9.968e-05,2]
[347981320,1736260235001,-6172.34,9.968e-05,2]
[347981322,1736260235010,-1124.4,9.968e-05,2]
[347981324,1736260235019,-198.64269522,9.968e-05,2]
[347981326,1736260235029,-3001.92,9.968e-05,2]
[347981328,1736260235038,-2234.47,9.968e-05,2]
[347981330,1736260235048,-500.0,9.968e-05,2]
[347981332,1736260235059,-1361.38,9.968e-05,2]
[347981334,1736260235069,-500.0,9.968e-05,2]
[347981336,1736260235078,-6338.8,9.968e-05,2]
[347981338,1736260235087,-1335.82,9.968e-05,2]
[347981340,1736260235096,-500.0,9.968e-05,2]
[347981342,1736260235106,-1566.35,9.968e-05,2]
[347981344,1736260235115,-16927.22,9.968e-05,2]
[347981346,1736260235125,-500.41563858,9.968e-05,2]
[347981348,1736260235134,-500.0,9.968e-05,2]
[347981350,1736260235143,-500.0,9.968e-05,2]
[347981352,1736260235152,-500.0,9.968e-05,2]
[347981354,1736260235162,-500.0,9.968e-05,2]
[347981356,1736260235171,-790.59,9.968e-05,2]
[347981358,1736260235180,-500.0,9.968e-05,2]
[347981360,1736260235189,-1852.84,9.968e-05,2]
[347981362,1736260235199,-500.0,9.968e-05,2]
[347981364,1736260235208,-1717.39,9.968e-05,2]
[347981366,1736260235217,-500.0,9.968e-05,2]
[347981368,1736260235226,-500.0,9.968e-05,2]
[347981370,1736260235236,-609.08,9.968e-05,2]
[347981372,1736260235245,-2824.78,9.968e-05,2]
[347981374,1736260235254,-318.97017049,9.968e-05,2]
[347981376,1736260235264,-500.0,9.968e-05,2]
[347981378,1736260235274,-500.0,9.968e-05,2]
[347981380,1736260235283,-5315.13,9.968e-05,2]
[347981382,1736260235293,-809.37,9.968e-05,2]
[347981384,1736260235302,-152.328791,9.968e-05,2]
[347981386,1736260235312,-500.0,9.968e-05,2]
[347981388,1736260235321,-1604.36,9.968e-05,2]
[347981390,1736260235330,-500.59535112,9.968e-05,2]
[347981392,1736260235341,-500.0,9.968e-05,2]
[347981394,1736260235351,-500.0,9.968e-05,2]
[347981396,1736260235360,-1710.39,9.968e-05,2]
[347981398,1736260235369,-1146.82,9.968e-05,2]
[347981400,1736260235379,-570.80148176,9.968e-05,2]
[347981402,1736260235388,-510.60069867,9.968e-05,2]
[347981404,1736260235397,-4589.96,9.968e-05,2]
[347981406,1736260235407,-5115.42,9.968e-05,2]
[347981408,1736260235416,-321.1193767,9.968e-05,2]
[347981410,1736260235426,-7312.35,9.968e-05,2]
[347981412,1736260235435,-1501.95,9.968e-05,2]
[347981414,1736260235445,-500.0,9.968e-05,2]
[347981416,1736260235454,-152.526195,9.968e-05,2]
[347981418,1736260235463,-500.0,9.968e-05,2]
[347981420,1736260235473,-500.0,9.968e-05,2]
[347981422,1736260235482,-1994.56,9.968e-05,2]
[347981424,1736260235491,-1142.44,9.968e-05,2]
[347981426,1736260235501,-947.67,9.968e-05,2]
[347981428,1736260235510,-1259.02,9.968e-05,2]
[347981430,1736260235519,-500.0,9.968e-05,2]
[347981432,1736260235529,-716.71,9.968e-05,2]
[347981434,1736260235538,-500.0,9.968e-05,2]
[347981436,1736260235547,-1086.85,9.969e-05,2]
[347981438,1736260235559,-500.0,9.969e-05,2]
[347981440,1736260235569,-1627.5,9.969e-05,2]
[347981442,1736260235580,-1433.05,9.969e-05,2]
[347981444,1736260235589,-1709.11,9.969e-05,2]
[347981446,1736260235600,-1014.97,9.969e-05,2]
[347981448,1736260235610,-695.83,9.969e-05,2]
[347981450,1736260235619,-500.0,9.969e-05,2]
[347981452,1736260235629,-606.73,9.969e-05,2]